Cogmind - Beta 11.1 @@@ ROGUE MODE // 2022.04.28 @ 03:10:03 // AFD2019/Pay2Buy Player: Torako Result: Destroyed by H-66 Slayer with Gauss Rifle Performance ------------- Evolutions (4) 2000 Regions Visited (7) 1400 Robots Destroyed (83) 415 Value Destroyed (2762) 2762 Prototype IDs (4) 80 Alien Tech Used (0) 0 Bonus (856) 856 TOTAL SCORE: 7513 Bonus ------- High Alert Combat Kills 356 Entered DSFs 500 Cogmind --------- Core Integrity 0/850 Matter 294/300 Energy 100/100 System Corruption 1% Temperature Cool (0) Movement Core (150) Ox2 Location -6/Extension Parts ------- > --- POWER (1) -------- (None) > --- PROPULSION (4) --- (None) > --- UTILITY (6) ------ Coolant Injector Advanced Targeting Computer > --- WEAPON (4) ------- Hypervelocity Railgun > --- INVENTORY (10) --- Compact Matter Pod (150) Compact Matter Pod (150) Advanced EM Disruption Field Peak State ------------ > --- POWER ------------ (None) > --- PROPULSION ------- Medium Treads Airjet Airjet > --- UTILITY ---------- Coolant Injector Advanced Targeting Computer Advanced Targeting Computer > --- WEAPON ----------- Enhanced Autogun Enhanced Autogun Enhanced Autogun Enhanced Autogun > --- INVENTORY -------- Compact Matter Pod Compact Matter Pod Improved Propulsion Shielding Enhanced Autogun Light Cannon [Rating: 37] Favorites ----------- Power None Propulsion Airjet Treads Medium Treads Hover Unit Airjet Utility Advanced Targeting Computer Device Coolant Injector Processor Advanced Targeting Computer Protection Improved Propulsion Shielding Weapon Enhanced Autogun Energy Cannon Neutron Cannon Ballistic Gun Enhanced Autogun Ballistic Cannon Magnetic Acceleration Cannon Slashing Weapon Makeshift Sword Build | -11 -10 -9 -8 -7 -7 -6 -6 ------- Run | Scr Mat Mat Mat Fac DSF Fac Ext Slots Evolved 8 | . . 2 2 2 . 2 . Power . | . . . . . . . . Propulsion 2 | . . 1 . 1 . . . Utility 4 | . . 1 . 1 . 2 . Weapon 2 | . . . 2 . . . . Parts Attached 11 | . . 1 6 . . 1 3 Power . | . . . . . . . . Engine . | . . . . . . . . Core . | . . . . . . . . Reactor . | . . . . . . . . Propulsion 2 | . . . . . . . 2 Treads 2 | . . . . . . . 2 Leg . | . . . . . . . . Wheel . | . . . . . . . . Hover . | . . . . . . . . Flight . | . . . . . . . . Utility 3 | . . . 2 . . 1 . Device 2 | . . . 1 . . 1 . Storage . | . . . . . . . . Processor . | . . . . . . . . Hackware . | . . . . . . . . Protection 1 | . . . 1 . . . . Artifact . | . . . . . . . . Weapon 6 | . . 1 4 . . . 1 Energy Gun . | . . . . . . . . Energy Cannon . | . . . . . . . . Ballistic Gun 5 | . . 1 4 . . . . Ballistic Cannon 1 | . . . . . . . 1 Launcher . | . . . . . . . . Special Weapon . | . . . . . . . . Impact Weapon . | . . . . . . . . Slashing Weapon . | . . . . . . . . Piercing Weapon . | . . . . . . . . Special Melee Weapon . | . . . . . . . . Unidentified Prototypes . | . . . . . . . . Parts Lost 20 | . . . 6 . 1 1 12 Power . | . . . . . . . . Propulsion 4 | . . . 1 . . . 3 Utility 4 | . . . 1 . 1 . 2 Weapon 12 | . . . 4 . . 1 7 Highest Loss Streak 4 | . . . 4 . 1 1 4 To Critical Strikes . | . . . . . . . . Average Slot Usage (%) 53 | . 14 47 74 61 59 56 47 Treads 2 | . . . . . . . 5 Hover 4 | . . 4 12 7 7 6 . Device 5 | . . . . . . 11 11 Processor 13 | . . 15 18 15 15 13 11 Protection 3 | . . 4 6 7 5 . . Ballistic Gun 18 | . . 22 35 30 30 24 4 Ballistic Cannon 3 | . 14 . . . . . 8 Naked Turns . | . . . . . . . . Heaviest Build 24 | 3 3 8 14 14 14 13 24 Greatest Support 30 | 3 3 8 28 8 8 8 30 Greatest Overweight (x) 2 | . . 1 1 1 1 1 2 Average Overweight (x) . | . . . . 1 1 1 . Largest Inventory Capacity 10 | 10 10 10 10 10 10 10 10 Average Capacity 10 | 10 10 10 10 10 10 10 10 Most Carried 7 | . . 7 6 5 5 5 4 Average Carried 3 | . . 5 4 5 5 4 2 Final Capacity 10 | 10 10 10 10 10 10 10 10 Final Carried 7 | . . 7 5 5 5 4 3 Class Distribution -------------------- 60% | Gunner 39% | Mutant Dominant Class ---------------- Mutant | -10/Materials Mutant | -9/Materials Gunner | -8/Materials Gunner | -7/Factory Gunner | -7/DSF Gunner | -6/Factory Gunner | -6/Extension Resources | -11 -10 -9 -8 -7 -7 -6 -6 ----------- Run | Scr Mat Mat Mat Fac DSF Fac Ext Matter Collected 2445 | 103 153 461 1251 . 5 72 400 Remotely . | . . . . . . . . Salvage Created 3608 | 94 130 938 1616 . . 72 758 Parts . | . . . . . . . . Haulers Intercepted 9 | . . 5 4 . . . . Recyclers Shooed . | . . . . . . . . Parts Field Recycled . | . . . . . . . . Retrieved Matter . | . . . . . . . . Parts Self-Destructed . | . . . . . . . . Prevented . | . . . . . . . . Kills | -11 -10 -9 -8 -7 -7 -6 -6 ------- Run | Scr Mat Mat Mat Fac DSF Fac Ext Combat Hostiles Destroyed 61 | . 4 15 26 . . 3 13 Melee 2 | . . . . . . . 2 Guns 46 | . . 15 26 . . 3 2 Cannons 13 | . 4 . . . . . 9 Classes Destroyed 13 | 2 2 5 3 . . . 1 Worker 1 | . . 1 . . . . . Builder 3 | . . . 2 . . . 1 Tunneler 1 | 1 . . . . . . . Hauler 9 | . . 5 4 . . . . Recycler 3 | 1 . . 1 . . . 1 Operator 2 | . 1 . . . . . 1 Watcher 3 | . . 2 1 . . . . Swarmer 10 | . . 4 3 . . 3 . Grunt 35 | . 4 7 18 . . . 6 Sentry 11 | . . 4 3 . . . 4 Hunter 3 | . . . 1 . . . 2 Programmer 1 | . . . . . . . 1 Heavy 1 | . . . 1 . . . . Best Kill Streak 23 | 2 3 7 23 . . 3 5 Combat Bots Only 16 | . 2 7 16 . . 3 5 Max Kills in Single Turn 2 | 1 1 2 1 . . 1 2 Gunslinging 1 | . . 1 . . . . . Exploded . | . . . . . . . . Melee 1 | . . . . . . . 1 Uniques/NPCs Destroyed . | . . . . . . . . Combat | -11 -10 -9 -8 -7 -7 -6 -6 -------- Run | Scr Mat Mat Mat Fac DSF Fac Ext Damage Taken 3764 | . 72 491 800 78 255 46 2022 Core 1220 | . 33 161 97 78 . . 851 Absorbed by Shields . | . . . . . . . . Redirected to Shielding 219 | . . 27 79 . 113 . . Core Remaining (%) 83 | 100 86 59 82 . 88 . . Volleys Fired 190 | 4 18 53 63 . . 3 49 Largest 4 | 1 1 2 4 . . 4 4 Hottest 203 | 35 35 50 100 . . 100 203 Shots Fired 487 | 4 18 106 251 . . 11 97 Gun 401 | . . 106 251 . . 11 33 Cannon 86 | 4 18 . . . . . 64 Launcher . | . . . . . . . . Special . | . . . . . . . . Kinetic 463 | 4 18 106 251 . . 11 73 Thermal 24 | . . . . . . . 24 Explosive . | . . . . . . . . Electromagnetic . | . . . . . . . . Robot Hit Streak 22 | 1 4 16 22 . . 12 14 Robot Miss Streak 4 | 1 2 4 3 . . 2 1 Penetration Max . | . . . . . . . . Secondary Targets 5 | . . 1 3 . . 1 . Max Gunslinging Chain 1 | . . 1 1 . . 1 . Shots Hit Robots 338 | 2 12 76 164 . . 7 77 Core Hits 142 | 2 6 28 68 . . 5 33 Critical Kills 3 | . . 2 . . . . 1 Critical Parts Destroyed 2 | . . . 2 . . . . Critical Strikes 6 | . . 2 2 . . . 2 Destroy 5 | . . 2 2 . . . 1 Blast 1 | . . . . . . . 1 Melee Attacks 20 | . . . . . . . 20 Impact . | . . . . . . . . Slashing 20 | . . . . . . . 20 Piercing . | . . . . . . . . Sneak Attacks . | . . . . . . . . Combat Hostiles . | . . . . . . . . Follow-up Attacks . | . . . . . . . . Damage Inflicted 6523 | 56 201 1368 2797 . . 123 1978 Guns 4755 | . . 1368 2797 . . 123 467 Cannons 1371 | 56 201 . . . . . 1114 Explosions . | . . . . . . . . Melee 397 | . . . . . . . 397 Ramming . | . . . . . . . . Kinetic 5861 | 56 201 1368 2797 . . 123 1316 Thermal 265 | . . . . . . . 265 Explosive . | . . . . . . . . Electromagnetic . | . . . . . . . . Impact . | . . . . . . . . Slashing 397 | . . . . . . . 397 Piercing . | . . . . . . . . Highest Corruption 1 | . . . . . . . 1 Average Corruption 1 | . . . . . . . 1 Corruption Purged . | . . . . . . . . Corruption Blocked . | . . . . . . . . Effects 3 | . . . . . . . 3 Message Errors 1 | . . . . . . . 1 Matter Fused 1 | . . . . . . . 1 Weapon Failures 1 | . . . . . . . 1 Overload Shots . | . . . . . . . . Overflow Damage 19 | . . . . . . . 19 Projectiles 19 | . . . . . . . 19 Explosions . | . . . . . . . . Melee . | . . . . . . . . Knockbacks 9 | 1 . . . . . . 8 Impact . | . . . . . . . . Kinetic 8 | 1 . . . . . . 7 Secondary 1 | . . . . . . . 1 Self-Inflicted Damage . | . . . . . . . . Shots . | . . . . . . . . Rammed . | . . . . . . . . Targets Rammed . | . . . . . . . . Kicked . | . . . . . . . . Crushed . | . . . . . . . . Highest Temperature 520 | 9 9 12 520 . . 58 198 Average Temperature 96 | 5 3 5 136 . . 39 51 Received Heat Transfer 741 | . 39 177 261 . . . 264 Effects 2 | . . . 2 . . . . Energy Bleed 2 | . . . 2 . . . . Siege Activations . | . . . . . . . . Robots Corrupted . | . . . . . . . . Combat Hostiles . | . . . . . . . . Parts Fried . | . . . . . . . . Impact Corruptions . | . . . . . . . . Robots Melted . | . . . . . . . . Combat Hostiles . | . . . . . . . . Parts Melted . | . . . . . . . . Heat Transferred . | . . . . . . . . Parts Sabotaged . | . . . . . . . . Parts Stolen . | . . . . . . . . Parts Stripped . | . . . . . . . . Power Chain Reactions . | . . . . . . . . Missiles Intercepted . | . . . . . . . . Alert | -11 -10 -9 -8 -7 -7 -6 -6 ------- Run | Scr Mat Mat Mat Fac DSF Fac Ext Peak Influence 1048 | 10 145 596 1048 402 296 217 235 Initial 402 | . 6 61 251 402 281 157 105 Average 302 | 5 83 310 609 402 283 177 165 Maximum Alert Level 3 | . . 2 3 2 1 1 1 Low Security (%) 45 | 100 100 44 . . . 66 74 Level 1 27 | . . 14 36 . 100 33 25 Level 2 18 | . . 40 21 100 . . . Level 3 8 | . . . 42 . . . . Level 4 . | . . . . . . . . Level 5 . | . . . . . . . . High Security . | . . . . . . . . Max Security . | . . . . . . . . Squads Dispatched 12 | . 1 . 6 . 1 1 3 Investigation 5 | . . . 2 . . 1 2 Extermination . | . . . . . . . . Reinforcement 7 | . 1 . 4 . 1 . 1 Assault . | . . . . . . . . Garrison . | . . . . . . . . Intercept . | . . . . . . . . Searches Triggered . | . . . . . . . . Construction Impeded . | . . . . . . . . Haulers Reinforced . | . . . . . . . . Active Scanning Responses . | . . . . . . . . Cargo Convoy Interrupts . | . . . . . . . . Stealth | -11 -10 -9 -8 -7 -7 -6 -6 --------- Run | Scr Mat Mat Mat Fac DSF Fac Ext Distress Signals 5 | . . 2 2 . . . 1 Communications Jammed . | . . . . . . . . Distress Signals . | . . . . . . . . Times Spotted 82 | . 5 20 33 . 4 3 17 Peak Tracking Total 10 | . 2 6 10 . 4 3 3 Tactical Retreats 8 | . . 3 2 . 2 . 1 Traps | -11 -10 -9 -8 -7 -7 -6 -6 ------- Run | Scr Mat Mat Mat Fac DSF Fac Ext Traps Triggered 8 | . . 3 1 1 2 . 1 Indirectly . | . . . . . . . . Trap Hack Attempts . | . . . . . . . . Triggered . | . . . . . . . . Disarmed . | . . . . . . . . Reprogrammed . | . . . . . . . . Reused . | . . . . . . . . Traps Extracted . | . . . . . . . . Installed . | . . . . . . . . Triggered . | . . . . . . . . Machines | -11 -10 -9 -8 -7 -7 -6 -6 ---------- Run | Scr Mat Mat Mat Fac DSF Fac Ext Machines Disabled 6 | . . . 3 . . . 3 Max in Single Turn 1 | . . . 1 . . . 1 Machines Sabotaged . | . . . . . . . . Garrisons Compromised . | . . . . . . . . Overloaded Fab Kills . | . . . . . . . . Hacking | -11 -10 -9 -8 -7 -7 -6 -6 --------- Run | Scr Mat Mat Mat Fac DSF Fac Ext Machines Accessed 11 | . 2 1 2 1 . 2 3 Terminals 11 | . 2 1 2 1 . 2 3 Fabricators . | . . . . . . . . Repair Stations . | . . . . . . . . Recycling Units . | . . . . . . . . Scanalyzers . | . . . . . . . . Garrison Access . | . . . . . . . . Total Hacks 27 | . 5 2 5 2 . 6 7 Successful 7 | . 3 . 1 1 . 1 1 Failed 20 | . 2 2 4 1 . 5 6 Catastrophic 1 | . . . . . . . 1 Database Lockouts . | . . . . . . . . Manual 3 | . 3 . . . . . . Terminals 27 | . 5 2 5 2 . 6 7 Fabricators . | . . . . . . . . Repair Stations . | . . . . . . . . Recycling Units . | . . . . . . . . Scanalyzers . | . . . . . . . . Garrison Access . | . . . . . . . . Terminal Hacks 6 | . 2 . 1 1 . 1 1 Robot Analysis 1 | . 1 . . . . . . Open Door 2 | . . . . . . 1 1 Open DSF 1 | . . . . 1 . . . Emergency Access Points 1 | . . . 1 . . . . Terminal Index 1 | . 1 . . . . . . Fabricator Hacks . | . . . . . . . . Repair Station Hacks . | . . . . . . . . Recycling Unit Hacks . | . . . . . . . . Scanalyzer . | . . . . . . . . Garrison Access Hacks . | . . . . . . . . Unauthorized Hacks 1 | . 1 . . . . . . Terminals 1 | . 1 . . . . . . Botnet 1 | . 1 . . . . . . Fabricators . | . . . . . . . . Repair Stations . | . . . . . . . . Recycling Units . | . . . . . . . . Scanalyzers . | . . . . . . . . Garrison Access . | . . . . . . . . Data Cores Recovered . | . . . . . . . . Used . | . . . . . . . . Hacking Detections 8 | . 2 1 2 . . 1 2 Full Trace Events 5 | . . 1 1 . . 1 2 Feedback Events . | . . . . . . . . Feedback Blocked . | . . . . . . . . Robot Schematics Acquired . | . . . . . . . . Robots Built . | . . . . . . . . Authchips . | . . . . . . . . Time . | . . . . . . . . Total Robot Build Rating . | . . . . . . . . Part Schematics Acquired . | . . . . . . . . Parts Built . | . . . . . . . . Authchips . | . . . . . . . . Time . | . . . . . . . . Total Part Build Rating . | . . . . . . . . Parts Repaired . | . . . . . . . . Time . | . . . . . . . . Parts Recycled . | . . . . . . . . Recycled Matter . | . . . . . . . . Retrieved Matter . | . . . . . . . . Retrieved Components . | . . . . . . . . Parts Scanalyzed . | . . . . . . . . Part Schematics Acquired . | . . . . . . . . Parts Damaged . | . . . . . . . . Bothacking | -11 -10 -9 -8 -7 -7 -6 -6 ------------ Run | Scr Mat Mat Mat Fac DSF Fac Ext Used RIF Installer . | . . . . . . . . Robots Hacked . | . . . . . . . . Non-combat . | . . . . . . . . Combat . | . . . . . . . . Robot Hacks Applied . | . . . . . . . . Relay Couplers Released . | . . . . . . . . Fabnet Peak Effective % . | . . . . . . . . Robots Rewired . | . . . . . . . . Allies Hacked . | . . . . . . . . Hacks Repelled . | . . . . . . . . Allies | -11 -10 -9 -8 -7 -7 -6 -6 -------- Run | Scr Mat Mat Mat Fac DSF Fac Ext Total Allies 3 | . . . . . . . 3 Largest Group 2 | . . . . . . . 2 Highest-Rated Group 45 | . . . . . . . 45 Highest-Rated Ally 31 | . . . . . . . 31 Total Orders . | . . . . . . . . Ally Attacks 7 | . . . . . . . 7 Total Damage 95 | . . . . . . . 95 Kills . | . . . . . . . . Allies Corrupted . | . . . . . . . . Allies Melted . | . . . . . . . . Intel | -11 -10 -9 -8 -7 -7 -6 -6 ------- Run | Scr Mat Mat Mat Fac DSF Fac Ext Robot Analysis Total 1 | . 1 . . . . . . Derelict Logs Recovered . | . . . . . . . . Drone Launches . | . . . . . . . . Drone Recoveries . | . . . . . . . . Exploration | -11 -10 -9 -8 -7 -7 -6 -6 ------------- Run | Scr Mat Mat Mat Fac DSF Fac Ext Turns Passed 2080 | 18 86 356 434 144 124 163 755 Spaces Moved 1350 | 21 100 257 299 118 79 129 347 Core 253 | 21 100 130 . . . . 2 Treads 328 | . . . 11 . . . 317 Legs . | . . . . . . . . Wheels . | . . . . . . . . Hover 769 | . . 127 288 118 79 129 28 Flight . | . . . . . . . . Fastest Speed 50 | 50 50 60 56 120 120 120 50 Average Speed 108 | 50 50 80 94 120 120 120 150 Slowest Speed 160 | 50 50 100 160 120 120 120 160 Overloaded Moves . | . . . . . . . . Propulsion Burnouts . | . . . . . . . . Robots Hopped . | . . . . . . . . Cave-ins Triggered . | . . . . . . . . Exploration Rate (%) 27 | 3 19 30 52 6 71 8 28 Regions Visited 7 Branch Regions 1 Pre-discovered Areas . | . . . . . . . . Known Exits Taken 1 | . . . . 1 . . . Unknown Exits Taken 5 | 1 1 1 1 . . 1 . Scrap Searched . | . . . . . . . . Spaces Dug . | . . . . . . . . Terrain Destroyed 8 | . . . . . . . 8 Melee . | . . . . . . . . Projectile 8 | . . . . . . . 8 AOE . | . . . . . . . . Terrain Rammed . | . . . . . . . . Walls Destroyed . | . . . . . . . . Machines Disabled . | . . . . . . . . Actions | -11 -10 -9 -8 -7 -7 -6 -6 --------- Run | Scr Mat Mat Mat Fac DSF Fac Ext Total 1711 | 24 117 342 387 120 108 133 480 Wait 119 | . . 32 19 3 4 1 60 Move 1343 | 20 99 256 298 117 78 128 347 Hop . | . . . . . . . . Pick Up . | . . . . . . . . Fast Attach 1 | . . . . . . . 1 Attach 7 | . . . 4 . . 1 2 Detach 2 | . . . 1 . . . 1 Swap 3 | . . 1 2 . . . . Drop . | . . . . . . . . Fire 190 | 4 18 53 63 . . 3 49 Melee 20 | . . . . . . . 20 Ram . | . . . . . . . . Kick . | . . . . . . . . Crush . | . . . . . . . . Escape Stasis 26 | . . . . . 26 . . Rewire . | . . . . . . . . Trap . | . . . . . . . . Miscellaneous . | . . . . . . . . Route ------- -11/Scrapyard -10/Materials -9/Materials -8/Materials -7/Factory -7/DSF -6/Factory -6/Extension History --------- Turn | Location | Event 5 | -11/Scrapyard | Discovered new exit (range 12) 19 | -11/Scrapyard | Entered Materials 46 | -10/Materials | Discovered new exit (range 16) 105 | -10/Materials | Entered another Materials area 105 | -9/Materials | Evolved 2 slots: Propulsion x1, Utility x1 316 | -9/Materials | Build established: Mutant 336 | -9/Materials | Destroyed 7 combat bots 450 | -9/Materials | Discovered new exit (range 16) 461 | -9/Materials | Entered another Materials area 461 | -8/Materials | Evolved 2 slots: Weapon x2 751 | -8/Materials | Destroyed 16 combat bots 761 | -8/Materials | Build established: Gunner 858 | -8/Materials | Lost 4 parts (1n1u2w) 877 | -8/Materials | Discovered new exit (range 15) 895 | -8/Materials | Entered Factory 895 | -7/Factory | Evolved 2 slots: Propulsion x1, Utility x1 1039 | -7/Factory | Identified exit to DSF 1039 | -7/Factory | Entered DSF 1092 | -7/DSF | Additional patrols routed to DSF 1145 | -7/DSF | Discovered new exit (range 15) 1163 | -7/DSF | Entered Factory 1163 | -6/Factory | Evolved 2 slots: Utility x2 1321 | -6/Factory | Discovered new exit (range 6) 1326 | -6/Factory | Entered Extension 1405 | -6/Extension | Lost 3 parts (1n2w) 1655 | -6/Extension | Rescued a captive Derelict 1656 | -6/Extension | Rescued a captive Derelict 1754 | -6/Extension | Rescued a captive Derelict 1841 | -6/Extension | Lost 3 parts (1n2w) 1851 | -6/Extension | Disrupted transfer network 1996 | -6/Extension | Lost 4 parts (2u2w) 2065 | -6/Extension | Disrupted transfer network 2065 | -6/Extension | Core integrity fell below 50% 2072 | -6/Extension | Build established: Mutant 2076 | -6/Extension | Core integrity fell below 20% 2081 | -6/Extension | Destroyed by H-66 Slayer with Gauss Rifle Last Messages --------------- R-10 Processor enters Transfer Station. C-30 ARC bursts open, deploying its payload. H-66 Slayer unfolds itself. Slug penetrates Machine. Machine disabled. Slug penetrates Machine. Penetrated by Slug. Adv. Medium Treads destroyed. Penetrated by Slug. Transfer Station disabled. Penetrated by Slug. ALERT: Transfer network disrupted, dispatching additional forces. Penetrated by Slug. Mak. Sword destroyed. Slug penetrates Transfer Station. [You open your loot box...] [Congratulations on your very own Hyp. Railgun!] HV Slug penetrates H-66 Slayer. HV Slug penetrates Machine. Penetrated by Slug. Map ----- +----------------------------------------------------+ | ?????########### #######????? | | ?????# % #????? | | ?????# ######### #####%###### | | ?????# #????#####+###### | | ?????# #????# ## | | ?????# #????# ######## | | ?????# #????# " T"" ##??????? | | ?????# #????# """"" #???????? | | ?????# #????###########???????? | | ?????# #??????????????????????? | | ?????# #??????????????????????? | | ?????# #??????????????????????? | | ?????# #??????????????????????? | | ?????# #??????????????????????? | | ?????# #??????????????????????? | | ?????# #??????????????????????? | | ?????# #??????????????????????? | | ?????# #??????????????????????? | | ?????# #??????????????????????? | | ?????# #??????????????????????? | | ?????# #??????????????????????? | | ?????# #??????????????????????? | | ?#####%#####??????????????????? | | ?# ""h"" #??????????????????? | | ?# " h #################??? | | ?# @ ??? | | ?# ?? | | ?# ?? | | ?# ?? | | ?# ?? | | ?# ################???? | | ?# #??????????????????? | | ?###" "###??????????????????? | | ???#" "#????????????????????? | | ???#"" "#????????????????????? | | ???#######????????????????????? | | ??????????????????????????????? | | ??????????????????????????????? | | | | | | | | | | | | | | | | | | | | | | | | | +----------------------------------------------------+ Best States ------------- Heat Dissipation 37 Coolant Potential 65 Energy Generation 5 Energy Capacity 100 Matter Stores 300 Matter Capacity 300 Sight Range 16 Terrain Scan Density 10 Propulsion Shielding 66 Weapon Shielding 66 Evasion (%) 53 Targeting Accuracy 16 Recoil Reduction 1 Item Schematics ----------------- None Robot Schematics ------------------ None Fabricated ------------ Nothing Alien Tech Used ----------------- None Achievements -------------- None Challenges ------------ None Cogshop Purchases (26) ------------------------ Lgt. Cannon (Loot Box) Enh. Autogun (793) Enh. Autogun (793) Enh. Autogun (793) Enh. Autogun (793) Enh. Autogun (793) Enh. Autogun (793) Adv. Targeting Computer (786) Adv. Targeting Computer (899) Airjet (898) Imp. Propulsion Shielding (664) Com. Matter Pod (459) Com. Matter Pod (459) Airjet (1178) Coolant Injector (803) Med. Treads (1119) Minigun (1564) Minigun (1564) Imp. Weapon Shielding (627) Gravity Neutralizer (1081) Magnetic Acceleration Cannon (980) Neutron Cannon (992) Adv. EM Disruption Field (Loot Box) Adv. Medium Treads (Loot Box) Mak. Sword (998) Hyp. Railgun (Loot Box) Game ------ Seed ShadeSupercompositeKatana Manual? 0 Play Time 00:29:08 Cumulative 312.3 hours Start 2022.04.28 @ 02:46:34 End 2022.04.28 @ 03:10:03 Sessions 1 Manual Loads 0 Difficulty Rogue Special Mode AFD2019/Pay2Buy Game No. 308 Rogue 308 Adventurer 0 Explorer 0 Win Type - Total 18 Types 12/0/4/2/0/0/0/0/0 Lore% 81 Gallery% 88 Achievement% 77 Wizard Run 0 Options --------- ASCII 0 Keyboard 1 Movement Numpad Keybinds 0 Fullscreen 1 Font 18/SmallcapsGlow Map View 76x50 Tactical HUD 1 Map Filters NONE Filters NONE Steam 1 RUN: 12cacd9a-4853-4e2e-9a8c-e03afd854ccc